bitfinex-derivatives/quotes_BNBF0:USTF0_20250111
["timestamp","ask_amount","ask_price","bid_price","bid_amount"]
[1736588360533,1.07718846,695.24,693.69,1.29062379]
[1736588361433,1.07718846,695.49,693.52,1.29062379]
[1736588362231,1.07718846,695.5,693.52,1.29062379]
[1736588363036,1.07718846,695.56,693.5,1.29062379]
[1736588363935,1.07718846,695.72,693.09,1.29062379]
[1736588365136,1.07718846,695.72,693.07,1.29062379]
[1736588366139,1.07718846,695.75,693.07,1.29062379]
[1736588366838,1.07718846,695.77,693.05,1.29062379]
[1736588368339,2.57993053,695.8,693.05,1.29062379]
[1736588369540,1.50274207,695.8,693.04,1.29062379]
[1736588370537,1.50274207,695.8,693.02,1.29062379]
[1736588371334,1.50274207,695.8,692.83,2.19585298]
[1736588371335,1.50274207,695.8,693.03,1.29062379]
[1736588372239,1.50274207,695.8,693.05,1.29062379]
[1736588372840,0.26441443,695.79,693.05,1.29062379]
[1736588373038,1.50274207,695.8,693.05,1.29062379]
[1736588373238,0.2644133,695.79,693.05,1.29062379]
[1736588373543,1.07718846,695.7,693.31,1.29062379]
[1736588373745,0.2644133,695.69,693.31,1.29062379]
[1736588374443,0.2644133,695.69,693.34,1.29062379]
[1736588375542,0.2644133,695.68,693.34,1.29062379]
[1736588375744,0.2644133,695.67,693.34,1.29062379]
[1736588375939,1.07718846,695.71,693.34,1.29062379]
[1736588376140,0.26441034,695.7,693.34,1.29062379]
[1736588376339,1.07718846,695.71,693.33,1.29062379]
[1736588376743,0.26439811,695.7,693.33,1.29062379]
[1736588376943,1.07718846,695.71,693.33,1.29062379]
[1736588377144,0.26440577,695.7,693.33,1.29062379]
[1736588377342,0.26440577,695.7,693.45,1.29062379]
[1736588377545,0.26440577,695.69,693.45,1.29062379]
[1736588377742,1.50274207,695.8,693.45,1.29062379]
[1736588377942,0.26439842,695.79,693.45,1.29062379]
[1736588378546,0.26439842,695.79,693.49,1.29062379]
[1736588379447,0.26439842,695.79,693.44,1.29062379]
[1736588380545,1.50274207,695.8,693.44,1.29062379]
[1736588380745,0.28744718,695.78,693.46,0.28840884]
[1736588380950,0.26441832,695.77,693.46,0.28840884]
[1736588381851,0.26441832,695.77,693.55,1.29062379]
[1736588382551,1.34160678,695.77,693.57,1.29062379]
[1736588382751,0.26441832,695.76,693.57,1.29062379]
[1736588383046,0.26441832,695.76,693.59,0.28835479]
[1736588383455,1.07718846,695.67,693.79,1.29062379]
[1736588383653,0.26441832,695.66,693.79,1.29062379]
[1736588384254,1.34160678,695.66,693.81,1.29062379]
[1736588384454,0.26441832,695.65,693.82,0.2882592]
[1736588384849,0.26441567,695.64,693.82,0.2882592]
[1736588385054,0.26441567,695.63,693.82,0.2882592]
[1736588385254,1.07718846,695.5,693.82,0.2882592]
[1736588385455,0.26441567,695.49,693.82,0.2882592]
[1736588385653,0.2644194,695.48,693.82,0.2882592]
[1736588385853,0.26442159,695.47,693.82,0.2882592]
[1736588386153,0.26444372,695.46,693.82,0.2882592]
[1736588386351,0.55202729,695.45,693.82,0.2882592]
[1736588386556,0.55203143,695.44,693.82,0.2882592]
[1736588386757,0.55203556,695.43,693.82,0.2882592]
[1736588386950,0.26444372,695.42,693.82,0.2882592]
[1736588387150,0.28760012,695.41,693.82,0.2882592]
[1736588387353,0.26444372,695.4,693.82,0.2882592]
[1736588387654,1.07718846,695.35,693.82,0.2882592]
[1736588387852,0.55207279,695.34,693.82,0.2882592]
[1736588388054,0.55207693,695.33,693.82,0.2882592]
[1736588388256,0.28763734,695.32,693.82,0.2882592]
[1736588389257,1.07718846,695.31,693.82,0.2882592]
[1736588389557,0.28764562,695.3,693.82,0.2882592]
[1736588390059,1.36483408,695.3,693.82,0.2882592]
[1736588391959,1.07718846,695.28,693.82,0.2882592]
[1736588392761,0.28764562,695.3,693.86,1.29062379]
[1736588394464,1.07718846,695.29,693.9,1.29062379]
[1736588395461,0.28764562,695.3,693.82,0.2882592]
[1736588397366,0.28764562,695.3,693.82,1.57888299]
[1736588400766,1.07718846,695.28,693.82,0.2882592]
[1736588403975,1.07718846,695.29,693.82,0.2882592]
[1736588404678,1.07718846,695.21,693.9,1.29062379]
[1736588405475,1.07718846,695.22,693.9,1.29062379]
[1736588406574,1.07718846,695.22,693.82,0.2882592]
[1736588406575,1.07718846,695.22,693.91,1.29062379]
[1736588407278,1.07718846,695.28,693.92,1.29062379]
[1736588407678,0.28765803,695.27,693.92,1.29062379]
[1736588408378,0.28765803,695.27,693.94,1.29062379]
[1736588409984,0.28765803,695.27,693.96,1.29062379]
[1736588411984,0.28765803,695.27,693.97,1.29062379]
[1736588413788,1.36484649,695.27,694.01,1.29062379]
[1736588414587,1.07718846,695.26,694.01,1.29062379]
[1736588415088,1.07718846,695.17,693.93,1.29062379]
[1736588416289,1.07718846,695.18,693.95,1.29062379]
[1736588417384,1.07718846,695.17,693.96,1.29062379]
[1736588418690,1.07718846,695.17,693.82,0.2882592]
[1736588418691,1.07718846,695.15,693.95,1.29062379]
[1736588419391,1.07718846,695.15,693.96,1.29062379]
[1736588420794,0.28765803,695.27,693.97,1.29062379]
[1736588420795,1.07718846,695.13,693.97,1.29062379]
[1736588421696,1.07718846,695.12,693.97,1.29062379]
[1736588422989,1.07718846,695.11,693.97,1.29062379]
[1736588423695,1.07718846,695.19,694.04,1.29062379]
[1736588426792,1.07718846,695.19,694.03,1.29062379]
[1736588427800,1.07718846,695.2,694.03,1.29062379]
[1736588428999,1.07718846,695.19,694.02,1.29062379]
[1736588429799,1.07718846,695.12,693.94,1.29062379]
[1736588430600,1.07718846,695.12,693.95,1.29062379]
[1736588431500,1.07718846,695.12,693.94,1.29062379]
[1736588437505,1.07718846,695.13,693.95,1.29062379]
[1736588442709,1.07718846,695.14,693.96,1.29062379]
[1736588443711,1.07718846,695.13,693.95,1.29062379]
[1736588444812,1.07718846,695.14,693.96,1.29062379]
[1736588446012,0.28765803,695.27,693.82,0.2882592]
[1736588452418,1.07718846,695.23,693.99,1.29062379]
[1736588453910,1.07718846,695.15,693.87,1.29062379]
[1736588454715,1.07718846,695.13,693.92,1.29062379]
[1736588455609,1.07718846,695.14,693.93,1.29062379]
[1736588456412,1.07718846,695.13,693.93,1.29062379]
[1736588458119,1.07718846,695.15,693.93,1.29062379]
[1736588459213,1.07718846,695.17,693.93,1.29062379]
[1736588460119,1.07718846,695.16,693.88,1.29062379]
[1736588462324,1.07718846,695.15,693.91,1.29062379]
[1736588463226,1.07718846,695.16,693.88,1.29062379]
[1736588464223,1.07718846,695.16,693.82,0.2882592]
[1736588464224,1.07718846,695.17,693.89,1.29062379]
[1736588465424,1.07718846,695.17,693.9,1.29062379]
[1736588466118,1.07718846,695.17,693.89,1.29062379]
[1736588468424,1.07718846,695.19,694.01,1.29062379]
[1736588469224,1.07718846,695.19,694.04,1.29062379]
[1736588470223,1.07718846,695.19,694.05,1.29062379]
[1736588473027,1.07718846,695.22,694.08,1.29062379]
[1736588474024,1.07718846,695.21,694.07,1.29062379]
[1736588475230,1.07718846,695.16,694.01,1.29062379]
[1736588477124,1.07718846,695.15,694.0,1.29062379]
[1736588477929,1.07718846,695.16,694.0,1.29062379]
[1736588479130,1.07718846,695.17,694.01,1.29062379]
[1736588480029,1.07718846,695.18,694.02,1.29062379]
[1736588481228,1.07718846,695.17,694.01,1.29062379]
[1736588481932,1.07718846,695.18,694.01,1.29062379]
[1736588483034,1.07718846,695.24,694.06,1.29062379]
[1736588484134,1.07718846,695.25,694.08,1.29062379]
[1736588485035,1.07718846,695.25,694.07,1.29062379]
[1736588488537,1.07718846,695.25,694.06,1.29062379]
[1736588489237,0.28765803,695.27,694.06,1.29062379]
[1736588489238,1.07718846,695.24,694.06,1.29062379]
[1736588489940,1.07718846,695.23,694.05,1.29062379]
[1736588491041,1.07718846,695.15,693.97,1.29062379]
[1736588492042,1.07718846,695.14,693.96,1.29062379]
[1736588492942,1.07718846,695.13,693.96,1.29062379]
[1736588493740,1.07718846,695.14,693.96,1.29062379]
[1736588495642,1.07718846,695.14,693.97,1.29062379]
[1736588497945,1.07718846,695.23,694.07,1.29062379]
[1736588499042,1.07718846,695.24,694.07,1.29062379]
[1736588501045,1.07718846,695.23,694.06,1.29062379]
[1736588502044,1.07718846,695.23,694.07,1.29062379]
[1736588504750,1.07718846,695.13,693.98,1.29062379]
[1736588508050,0.28765803,695.27,693.98,1.29062379]
[1736588509446,0.28765803,695.27,693.82,0.2882592]
[1736588512952,1.07883206,695.16,693.89,1.28998268]
[1736588518455,1.07883206,695.23,693.9,1.28998268]
[1736588518657,0.28767872,695.22,693.9,1.28998268]
[1736588519156,0.28767872,695.22,693.89,1.28998268]
[1736588519953,0.28767872,695.22,693.91,1.28998268]
[1736588520756,0.28767872,695.22,693.9,1.28998268]
[1736588521758,1.07883206,695.2,694.02,1.28998268]
[1736588523759,1.07883206,695.18,694.0,1.28998268]
[1736588524251,1.07883206,695.18,694.01,1.28998268]
[1736588525156,0.28767872,695.22,694.01,1.28998268]
[1736588525157,1.07883206,695.19,694.01,1.28998268]
[1736588528259,1.07883206,695.15,693.98,1.28998268]
[1736588532164,1.07883206,695.14,693.97,1.28998268]
[1736588534667,0.28767872,695.22,693.96,1.28998268]
[1736588534668,1.07883206,695.13,693.96,1.28998268]
[1736588535666,0.28767872,695.22,694.02,1.28998268]
[1736588535667,1.07883206,695.2,694.02,1.28998268]
[1736588536668,1.07883206,695.2,694.03,1.28998268]
[1736588539370,1.36651078,695.22,693.99,1.28998268]
[1736588541171,0.28767872,695.22,693.82,0.2882592]
[1736588551577,0.28767872,695.22,693.83,1.28998268]
[1736588553478,0.28767872,695.22,693.82,0.2882592]
[1736588556587,0.28767872,695.22,693.93,1.28998268]
[1736588557690,0.28767872,695.22,694.02,1.28998268]
[1736588559192,0.28767872,695.22,694.0,1.28998268]
[1736588559989,0.28767872,695.22,693.98,1.28998268]
[1736588560991,0.28767872,695.22,693.96,1.28998268]
[1736588561990,0.28767872,695.22,693.97,1.28998268]
[1736588562894,0.28767872,695.22,693.96,1.28998268]
[1736588563492,0.28767872,695.22,693.95,1.28998268]
[1736588564190,0.28767872,695.22,693.96,0.28820104]
[1736588564794,0.28767872,695.22,693.98,1.28998268]
[1736588564994,0.28767872,695.22,693.99,0.28818859]
[1736588566799,0.28767872,695.22,694.01,1.28998268]
[1736588567000,0.28767872,695.22,694.02,0.28817613]
[1736588573907,0.28767872,695.22,694.05,1.28998268]
[1736588574602,0.28767872,695.22,694.04,1.28998268]
[1736588574805,0.28767872,695.22,694.05,0.28816367]
[1736588575609,0.28767872,695.22,694.06,1.28998268]
[1736588576503,0.28767872,695.22,694.05,1.57814635]
[1736588578302,0.28767872,695.22,694.06,1.28998268]
[1736588579208,0.28767872,695.22,694.07,1.28998268]
[1736588581204,0.28767872,695.22,694.05,0.28816367]
[1736588587112,0.28767872,695.22,694.05,1.57814635]
[1736588588016,0.28767872,695.22,694.06,1.28998268]
[1736588589118,0.28767872,695.22,694.08,1.28998268]
[1736588589918,0.28767872,695.22,694.09,1.28998268]
[1736588590921,0.28767872,695.22,694.1,1.28998268]
[1736588591823,0.28767872,695.22,694.05,0.28816367]
[1736588591824,0.28767872,695.22,694.14,1.28998268]
[1736588592918,0.28767872,695.22,694.16,1.28998268]
[1736588593622,0.28767872,695.22,694.18,1.28998268]
[1736588595225,0.28767872,695.22,694.07,2.1947622]
[1736588595226,0.28767872,695.22,694.17,1.28998268]
[1736588596424,0.28767872,695.22,694.09,1.28998268]
[1736588597225,0.28767872,695.22,694.1,1.28998268]
[1736588598122,0.28767872,695.22,694.13,1.28998268]
[1736588599029,0.28767872,695.22,694.19,1.28998268]
[1736588601632,0.28767872,695.22,694.22,1.28998268]
[1736588602737,0.28767872,695.22,694.23,1.28998268]
[1736588604432,0.28767872,695.22,694.05,0.28816367]
[1736588610740,1.07883206,695.86,694.05,0.28816367]
[1736588611044,0.28741826,695.85,694.05,0.28816367]
[1736588637266,0.26435227,695.84,694.05,0.28816367]
[1736588637767,0.26435273,695.83,694.05,0.28816367]
[1736588637967,0.26435273,695.82,694.05,0.28816367]
[1736588638268,1.07883206,695.7,694.05,0.28816367]
[1736588638466,0.26435273,695.69,694.05,0.28816367]
[1736588640470,0.2874885,695.68,694.05,0.28816367]
[1736588655879,0.2874885,695.68,694.2,1.28998268]
[1736588656078,0.2874885,695.68,694.21,0.28809726]
[1736588657079,0.2874885,695.68,694.21,1.57807994]
[1736588658183,0.2874885,695.68,694.21,0.28809726]
[1736588666882,0.2874885,695.68,694.3,1.28998268]
[1736588667483,0.2874885,695.68,694.28,1.28998268]
[1736588667788,0.2874885,695.68,694.28,1.57805089]
[1736588668588,0.2874885,695.68,694.28,0.28806821]
[1736588669887,0.2874885,695.68,694.4,1.28998268]
[1736588670884,0.2874885,695.68,694.32,1.28998268]
[1736588671087,0.2874885,695.68,694.33,0.28804747]
[1736588684900,0.2874885,695.68,694.46,1.28998268]
[1736588686001,0.2874885,695.68,694.47,1.28998268]
[1736588686801,0.2874885,695.68,694.33,0.28804747]
[1736588702009,0.2874885,695.68,694.44,1.28998268]
[1736588702908,0.2874885,695.68,694.45,1.28998268]
[1736588704312,0.2874885,695.68,694.44,1.28998268]
[1736588705412,0.2874885,695.68,694.57,1.28998268]
[1736588706315,0.2874885,695.68,694.58,1.28998268]
[1736588707515,0.2874885,695.68,694.33,2.48280967]
[1736588707516,0.2874885,695.68,694.62,1.28998268]
[1736588708415,0.2874885,695.68,694.56,1.28998268]
[1736588709717,0.2874885,695.68,694.54,1.28998268]
[1736588710616,0.2874885,695.68,694.4,1.28998268]
[1736588711610,0.2874885,695.68,694.41,1.28998268]
[1736588712717,0.2874885,695.68,694.33,0.28804747]
[1736588763152,1.07883206,695.66,694.33,0.28804747]
[1736588763348,0.28750089,695.65,694.33,0.28804747]
[1736588765251,1.36633295,695.65,694.33,0.28804747]
[1736588765949,1.07883206,695.63,694.33,0.28804747]
[1736588766153,0.28751329,695.62,694.33,0.28804747]
[1736588766758,1.36634535,695.62,694.33,0.28804747]
[1736588767855,0.28751329,695.62,694.33,0.28804747]
[1736588778172,1.07883206,695.57,694.33,0.28804747]
[1736588778370,0.28753809,695.56,694.33,0.28804747]
[1736588780871,1.07883206,695.51,694.33,0.28804747]
[1736588782670,0.28753809,695.56,694.33,0.28804747]
[1736588782671,1.07883206,695.49,694.33,0.28804747]
[1736588783573,1.07883206,695.53,694.33,0.28804747]
[1736588784674,1.07883206,695.52,694.33,0.28804747]
[1736588785876,1.07883206,695.54,694.33,0.28804747]
[1736588786176,1.36637842,695.54,694.33,0.28804747]
[1736588789476,1.07883206,695.49,694.33,0.28804747]
[1736588790774,0.28754636,695.54,694.33,0.28804747]
[1736588823301,0.28754636,695.54,693.57,1.28998268]
[1736588823502,0.28754636,695.54,693.59,0.28835479]
[1736588824402,1.07883206,695.47,693.77,1.28998268]
[1736588824602,1.07883206,695.47,693.78,0.28827582]
[1736588824803,0.28757944,695.46,693.78,0.28827582]
[1736588837621,0.26441562,695.45,693.78,0.28827582]
[1736588837819,0.28758771,695.44,693.78,0.28827582]
[1736588838022,0.26441562,695.43,693.78,0.28827582]
[1736588838224,0.28759598,695.42,693.78,0.28827582]
[1736588838523,0.28759598,695.42,693.89,1.28998268]
[1736588838720,0.28759598,695.42,693.9,0.28822596]
[1736588852431,0.26442492,695.41,693.9,0.28822596]
[1736588852632,0.26443794,695.4,693.9,0.28822596]
[1736588852833,0.26443794,695.41,693.9,0.28822596]
[1736588853029,0.26443794,695.4,693.9,0.28822596]
[1736588853226,1.07883206,695.29,693.95,1.28998268]
[1736588853628,0.28765389,695.28,693.95,1.28998268]
[1736588854433,0.28765389,695.28,693.9,0.28822596]
[1736588879145,1.36648595,695.28,693.9,0.28822596]
[1736588879839,0.28765389,695.28,693.9,0.28822596]
[1736588888250,1.07883206,695.22,693.9,0.28822596]
[1736588888849,0.28768285,695.21,693.9,0.28822596]
[1736588890152,1.07883206,695.2,693.9,0.28822596]
[1736588890351,0.28769113,695.19,693.9,0.28822596]
[1736588909763,0.26452339,695.18,693.9,0.28822596]
[1736588909964,0.28769113,695.19,693.9,0.28822596]
[1736588910166,0.26453814,695.18,693.9,0.28822596]
[1736588910366,1.07883206,695.17,693.9,0.28822596]
[1736588910566,0.26453814,695.16,693.9,0.28822596]
[1736588910967,1.07883206,695.12,693.9,0.28822596]
[1736588911166,0.28772424,695.11,693.9,0.28822596]
[1736588912065,0.26453421,695.1,693.9,0.28822596]
[1736588912271,0.28773252,695.09,693.9,0.28822596]
[1736588912470,1.07883206,695.06,693.9,0.28822596]
[1736588912865,1.366577,695.06,693.9,0.28822596]
[1736588913372,1.07883206,695.05,693.9,0.28822596]
[1736588913567,0.26455251,695.04,693.9,0.28822596]
[1736588913765,0.28775736,695.03,693.9,0.28822596]
[1736588913968,0.26456117,695.02,693.9,0.28822596]
[1736588914170,0.28775736,695.03,693.9,0.28822596]
[1736588914371,1.07883206,694.98,693.9,0.28822596]
[1736588917371,1.07883206,694.97,693.9,0.28822596]
[1736588918579,1.07883206,694.93,693.9,0.28822596]
[1736588920274,1.07883206,694.93,693.53,1.28998268]
[1736588920680,1.07883206,694.9,693.49,1.28998268]
[1736588921378,1.07883206,694.92,693.49,1.28998268]
[1736588922378,1.07883206,694.92,693.48,1.28998268]
[1736588923674,1.07883206,694.94,693.48,1.28998268]
[1736588924680,1.07883206,694.95,693.48,1.28998268]
[1736588924876,1.36662254,694.95,693.48,1.28998268]
[1736588925682,1.36662254,694.95,693.24,2.1947622]
[1736588925683,0.28779048,694.95,693.35,1.28998268]
[1736588925882,0.28779048,694.95,693.36,0.28845044]
[1736588939894,0.28779048,694.95,693.4,1.28998268]
[1736588940094,0.28779048,694.95,693.41,0.28842964]
[1736588940894,0.28779048,694.95,693.47,1.28998268]
[1736588941094,0.28779048,694.95,693.47,1.57838736]
[1736588941691,0.28779048,694.95,693.47,0.28840468]
[1736588942996,0.28779048,694.95,693.47,1.57838736]
[1736588943995,0.28779048,694.95,693.61,1.28998268]
[1736588944891,0.28779048,694.95,693.64,1.28998268]
[1736588948198,0.28779048,694.95,693.63,1.28998268]
[1736588949199,0.28779048,694.95,693.72,1.28998268]
[1736588950101,0.28779048,694.95,693.61,1.28998268]
[1736588950900,0.28779048,694.95,693.62,0.28834232]
[1736588959198,0.28779048,694.95,693.63,1.28998268]
[1736588960606,0.28779048,694.95,693.64,0.288334]
[1736588961001,0.28779048,694.95,693.65,1.28998268]
[1736588961800,0.28779048,694.95,693.66,0.28832569]
[1736588972206,0.28779048,694.95,693.67,2.1947622]
[1736588972413,0.28779048,694.95,693.77,1.28998268]
[1736588973113,0.28779048,694.95,693.79,1.28998268]
[1736588974207,0.28779048,694.95,693.66,0.28832569]
[1736588975115,0.28779048,694.95,693.66,1.57830837]
[1736588976017,0.28779048,694.95,693.67,1.28998268]
[1736588976216,0.28779048,694.95,693.68,0.28831737]
[1736588977016,0.28779048,694.95,693.7,1.28998268]
[1736588977611,0.28779048,694.95,693.7,1.57829174]
[1736588977812,0.28779048,694.95,693.7,0.28830906]
[1736588983822,0.28779048,694.95,693.82,1.28998268]
[1736588987120,0.28779048,694.95,693.7,0.28830906]
[1736588987121,0.28779048,694.95,693.87,1.28998268]
[1736588988023,0.28779048,694.95,693.86,1.28998268]
[1736588989024,0.28779048,694.95,693.87,1.28998268]
[1736588990224,0.28779048,694.95,693.88,1.28998268]
[1736588991725,0.28779048,694.95,693.71,1.28998268]
[1736588992522,0.28779048,694.95,693.72,1.28998268]
[1736588994626,0.28779048,694.95,693.7,0.28830906]
[1736589000332,0.28779048,694.95,693.79,1.28998268]
[1736589001032,0.28779048,694.95,693.89,1.28998268]
[1736589002134,0.28779048,694.95,693.7,0.28830906]
[1736589002135,0.28779048,694.95,693.95,1.28998268]
[1736589002733,0.28779048,694.95,693.97,1.28998268]
[1736589005435,0.28779048,694.95,693.7,0.28830906]
[1736589013138,0.28779048,694.95,693.76,1.28998268]
[1736589014138,0.28779048,694.95,693.77,1.28998268]
[1736589015240,0.28779048,694.95,693.84,1.28998268]
[1736589015742,0.28779048,694.95,693.7,0.28830906]
[1736589015743,0.28779048,694.95,693.86,1.28998268]
[1736589020448,0.28779048,694.95,693.88,1.28998268]
[1736589021248,0.28779048,694.95,693.87,1.28998268]
[1736589022054,0.28779048,694.95,693.88,1.28998268]
[1736589023148,0.28779048,694.95,693.98,1.28998268]
[1736589023355,1.07883206,695.31,693.98,1.28998268]
[1736589024053,1.07883206,695.38,694.05,1.28998268]
[1736589024246,0.55204935,695.37,694.05,1.28998268]
[1736589024451,0.55205349,695.36,694.05,1.28998268]
[1736589024652,0.28762493,695.35,694.05,1.28998268]
[1736589025353,0.28762493,695.35,693.99,1.28998268]
[1736589026454,0.28762493,695.35,694.0,1.28998268]
[1736589027154,0.28762493,695.35,693.7,0.28830906]
[1736589027155,0.28762493,695.35,693.99,1.28998268]
[1736589028450,0.28762493,695.35,693.98,1.28998268]
[1736589029555,0.28762493,695.35,693.97,1.28998268]
[1736589030251,0.28762493,695.35,693.82,1.28998268]
[1736589030451,0.28762493,695.35,693.83,0.28825504]
[1736589031758,0.28762493,695.35,693.9,1.28998268]
[1736589031950,0.28762493,695.35,693.91,0.28822181]
[1736589034459,1.36645699,695.35,693.91,0.28822181]
[1736589035560,1.07883206,695.33,693.91,0.28822181]
[1736589037662,0.28762493,695.35,693.91,0.28822181]
[1736589037663,1.07883206,695.31,693.91,0.28822181]
[1736589038562,1.07883206,695.32,693.91,0.28822181]
[1736589039456,1.07883206,695.31,693.91,0.28822181]
[1736589040259,0.28762493,695.35,693.91,0.28822181]
[1736589040260,1.07883206,695.33,693.91,0.28822181]
[1736589041963,0.28762493,695.35,693.91,0.28822181]
[1736589042757,1.36645699,695.35,693.91,0.28822181]
[1736589044763,1.07883206,695.33,693.91,0.28822181]
[1736589046365,0.28762493,695.35,693.91,0.28822181]
[1736589050371,1.07883206,695.34,693.91,0.28822181]
[1736589050567,0.28763321,695.33,693.91,0.28822181]
[1736589051471,1.07883206,695.31,693.96,1.28998268]
[1736589051670,1.36647354,695.31,693.96,1.28998268]
[1736589052574,1.07883206,695.3,693.97,1.28998268]
[1736589053676,1.07883206,695.22,693.91,1.57820449]
[1736589054878,1.07883206,695.21,693.92,1.28998268]
[1736589055675,1.07883206,695.2,693.94,1.28998268]
[1736589057572,1.07883206,695.19,693.95,1.28998268]
[1736589058278,1.07883206,695.17,693.96,1.28998268]
[1736589059078,1.07883206,695.16,693.96,1.28998268]
[1736589060075,1.07883206,695.17,693.96,1.28998268]
[1736589060979,1.07883206,695.23,694.03,1.28998268]
[1736589062079,1.07883206,695.23,694.04,1.28998268]
[1736589063681,0.28764148,695.31,693.91,0.28822181]
[1736589067483,0.2644668,695.3,693.91,0.28822181]
[1736589067682,0.26448369,695.29,693.91,0.28822181]
[1736589067884,0.26448369,695.28,693.91,0.28822181]
[1736589068084,0.26448369,695.3,693.91,0.28822181]
[1736589068286,0.26448369,695.29,693.91,0.28822181]
[1736589068485,0.28764148,695.31,693.91,0.28822181]
[1736589068486,0.26448369,695.28,693.91,0.28822181]
[1736589068687,0.26448369,695.3,693.91,0.28822181]
[1736589068888,1.07883206,695.04,693.91,0.28822181]
[1736589069786,1.07883206,695.12,693.91,0.28822181]
[1736589071791,1.07883206,695.1,693.91,0.28822181]
[1736589074193,1.07883206,695.24,693.91,0.28822181]
[1736589074394,0.28767458,695.23,693.91,0.28822181]
[1736589077893,0.26454332,695.22,693.91,0.28822181]
[1736589078294,0.28768285,695.21,693.91,0.28822181]
[1736589078594,0.26455356,695.2,693.32,1.28998268]
[1736589079194,0.26455356,695.2,693.34,0.28845876]
[1736589079688,0.28769527,695.18,693.34,0.28845876]
[1736589079893,0.26455356,695.17,693.34,0.28845876]
[1736589080090,0.28770355,695.16,693.34,0.28845876]
[1736589081193,0.26456663,695.15,693.34,0.28845876]
[1736589081394,0.28771182,695.14,693.34,0.28845876]
[1736589081886,0.26455658,695.13,693.34,0.28845876]
[1736589082092,0.2877201,695.12,693.34,0.28845876]
[1736589082292,0.26455658,695.11,693.34,0.28845876]
[1736589082493,0.28772838,695.1,693.34,0.28845876]
[1736589082989,0.26456416,695.09,693.34,0.28845876]
[1736589083194,0.28773666,695.08,693.34,0.28845876]
[1736589084595,0.26456058,695.07,693.34,0.28845876]
[1736589084791,0.28774494,695.06,693.34,0.28845876]
[1736589088590,0.26456539,695.05,693.34,0.28845876]
[1736589088795,0.28775322,695.04,693.34,0.28845876]
[1736589089793,0.26456824,695.03,693.34,0.28845876]
[1736589089992,0.2877615,695.02,693.34,0.28845876]
[1736589090196,0.26456824,695.01,693.34,0.28845876]
[1736589090397,0.28776978,695.0,693.34,0.28845876]
[1736589090794,0.26457743,694.99,693.45,1.28998268]
[1736589090994,0.28777806,694.98,693.46,0.28840884]
[1736589091798,0.26458602,694.97,693.46,0.28840884]
[1736589091998,0.28778634,694.96,693.46,0.28840884]
[1736589112317,0.28778634,694.96,693.64,1.28998268]
[1736589113217,0.28778634,694.96,693.66,1.28998268]
[1736589114312,0.28778634,694.96,693.74,1.28998268]
[1736589115518,0.28778634,694.96,693.72,1.28998268]
[1736589117315,0.28778634,694.96,693.71,1.28998268]
[1736589118316,0.28778634,694.96,693.7,1.28998268]
[1736589119321,0.28778634,694.96,693.69,1.28998268]
[1736589120321,0.28778634,694.96,693.68,1.28998268]
[1736589121122,0.28778634,694.96,693.69,1.28998268]
[1736589121823,0.28778634,694.96,693.61,1.28998268]
[1736589122224,0.28778634,694.96,693.62,0.28834232]
[1736589142434,0.28778634,694.96,693.81,1.28998268]
[1736589143643,0.28778634,694.96,693.62,0.28834232]
[1736589143644,0.28778634,694.96,693.83,1.28998268]
[1736589144437,0.28778634,694.96,693.73,2.1947622]
[1736589144438,0.28778634,694.96,693.79,1.28998268]
[1736589145442,0.28778634,694.96,693.8,1.28998268]
[1736589146446,0.28778634,694.96,693.82,1.28998268]
[1736589147248,0.28778634,694.96,693.83,1.28998268]
[1736589148444,0.28778634,694.96,693.85,1.28998268]
[1736589149241,0.28778634,694.96,693.83,1.28998268]
[1736589150048,0.28778634,694.96,693.85,1.28998268]
[1736589151542,0.28778634,694.96,693.91,1.28998268]
[1736589153449,0.28778634,694.96,693.92,1.28998268]
[1736589155154,0.28778634,694.96,693.9,1.28998268]
[1736589156856,0.28778634,694.96,693.91,1.28998268]
[1736589157558,0.28778634,694.96,693.87,2.83390991]
[1736589158357,0.28778634,694.96,693.22,3.1729107]
[1736589158558,0.28778634,694.96,693.2,3.1729107]
[1736589158957,0.28778634,694.96,693.1,3.1729107]
[1736589160961,0.28778634,694.96,693.08,1.28998268]
[1736589162057,0.28778634,694.96,693.08,4.12389259]
[1736589162258,0.28778634,694.96,693.09,3.1729107]
[1736589165157,0.28778634,694.96,693.08,3.1729107]
[1736589165861,0.28778634,694.96,693.17,1.28998268]
[1736589166764,0.28778634,694.96,693.18,1.28998268]
[1736589167565,0.28778634,694.96,693.63,1.28998268]
[1736589167760,0.28778634,694.96,693.64,0.288334]
[1736589168562,0.28778634,694.96,693.72,1.28998268]
[1736589169267,0.28778634,694.96,693.74,1.28998268]
[1736589170266,0.28778634,694.96,693.75,1.70310688]
[1736589170462,0.28778634,694.96,693.76,3.1729107]
[1736589170661,0.28778634,694.96,693.77,3.1729107]
[1736589170867,0.28778634,694.96,693.78,3.1729107]
[1736589171067,0.28778634,694.96,693.9,1.28998268]
[1736589172666,0.28778634,694.96,693.91,2.83390991]
[1736589173166,0.28778634,694.96,693.91,6.00682061]
[1736589173463,0.28778634,694.96,693.92,3.1729107]
[1736589174967,0.28778634,694.96,693.93,2.83390991]
[1736589175176,0.28778634,694.96,693.93,6.00682061]
[1736589175370,0.28778634,694.96,693.94,3.1729107]
[1736589176772,0.28778634,694.96,693.85,3.1729107]